bitfinex/quotes_ETHUSD_20241231
["timestamp","ask_amount","ask_price","bid_price","bid_amount"]
[1735606288384,0.05396933,3351.9,3351.2,0.7732]
[1735606288585,0.05396933,3351.9,3351.5,2.98371]
[1735606288792,0.55,3351.9,3351.1,3.1547745]
[1735606289009,0.05396933,3351.8,3351.1,3.54757195]
[1735606289191,0.05396933,3351.8,3351.1,3.1547745]
[1735606289612,0.05396933,3351.8,3351.5,2.98371]
[1735606289786,0.05396933,3351.8,3351.7,2.98356]
[1735606290001,0.7831,3352.5,3351.9,2.98332]
[1735606290515,0.05111,3352.4,3351.9,2.98332]
[1735606290880,0.55,3352.3,3351.6,0.7732]
[1735606291075,0.55,3352.1,3351.4,2.98379]
[1735606291722,0.05121507,3352.0,3351.4,2.98379]
[1735606291962,0.79,3351.9,3351.4,2.98379]
[1735606292295,0.05129912,3351.8,3351.1,3.1547445]
[1735606292495,0.05129912,3351.8,3351.5,2.98371]
[1735606294881,0.05129912,3351.8,3351.2,2.984]
[1735606295128,0.05129912,3351.8,3351.5,2.98365]
[1735606295620,0.05129912,3351.8,3351.7,2.98356]
[1735606296684,0.984121,3352.2,3351.7,2.98356]
[1735606297185,0.05129912,3352.1,3351.7,2.98356]
[1735606297686,0.05129912,3352.1,3352.0,2.98329]
[1735606298008,0.7907,3352.5,3352.0,2.98329]
[1735606298195,0.05129912,3352.4,3352.0,2.98329]
[1735606298780,0.55,3352.3,3351.7,2.98352]
[1735606298980,0.7907,3352.1,3351.6,2.98364]
[1735606299176,0.7907,3352.1,3351.3,0.7659]
[1735606299177,0.05129912,3352.0,3351.3,0.7659]
[1735606299445,0.7907,3352.4,3351.9,2.98337]
[1735606299644,0.44481108,3352.3,3351.5,2.98373]
[1735606299843,0.7907,3352.4,3351.5,2.98373]
[1735606299987,0.7907,3352.4,3351.3,0.7659]
[1735606300428,0.7907,3352.4,3351.6,2.98356]
[1735606301070,0.55,3352.3,3351.6,2.98356]
[1735606301238,0.7907,3352.2,3351.6,2.98356]
[1735606301970,0.7907,3352.2,3351.3,0.7659]
[1735606302170,0.7907,3352.2,3351.7,2.98354]
[1735606302467,3.7907,3352.6,3351.5,0.7659]
[1735606302676,0.55,3352.3,3351.7,2.98348]
[1735606302842,1.11814,3352.3,3351.2,0.7659]
[1735606303043,1.11814,3352.3,3351.4,2.98377]
[1735606303356,0.55,3352.1,3351.4,2.98377]
[1735606304569,0.7907,3352.0,3351.4,2.98377]
[1735606304760,1.29712183,3352.0,3351.4,2.98377]
[1735606305243,0.55,3351.9,3351.1,3.1547645]
[1735606305447,0.55,3351.9,3351.2,2.98397]
[1735606305967,0.55,3351.7,3351.1,0.1707345]
[1735606306172,0.55,3351.4,3351.1,0.1707345]
[1735606306482,0.03440468,3351.3,3351.1,0.1707345]
[1735606306653,0.7907,3351.2,3351.1,0.1707345]
[1735606307229,1.3407,3351.2,3351.1,0.1707345]
[1735606307465,1.52977,3351.2,3351.1,0.1707345]
[1735606307985,0.7907,3351.2,3351.1,0.1707345]
[1735606308464,0.7907,3351.2,3351.1,3.1548245]
[1735606309102,0.7742,3351.5,3351.1,3.1548245]
[1735606309505,0.04941099,3351.4,3351.2,2.98397]
[1735606309903,0.04941099,3351.4,3351.1,0.1707345]
[1735606310108,0.04941099,3351.4,3351.3,2.98391]
[1735606310394,0.7742,3351.8,3351.4,2.98373]
[1735606311408,0.04941099,3351.7,3351.4,2.98373]
[1735606311615,0.7742,3351.8,3351.4,2.98373]
[1735606311915,0.04908855,3351.7,3351.4,2.98373]
[1735606312210,0.7742,3351.8,3351.4,2.98373]
[1735606312511,0.04908855,3351.7,3351.4,2.98373]
[1735606312882,0.7742,3351.8,3351.4,2.98373]
[1735606313085,0.04908855,3351.6,3351.4,2.98373]
[1735606313301,0.7742,3351.8,3351.4,2.98373]
[1735606313814,0.04908855,3351.7,3351.4,2.98373]
[1735606314011,0.7742,3351.8,3351.4,2.98373]
[1735606314213,0.04761049,3351.7,3351.4,2.98373]
[1735606314396,0.7742,3351.8,3351.4,2.98373]
[1735606314597,0.59770193,3351.7,3351.2,2.98398]
[1735606315900,0.04770193,3351.7,3351.5,2.98373]
[1735606316246,0.7742,3351.8,3351.5,2.98373]
[1735606316536,0.7742,3351.8,3351.3,2.98388]
[1735606316738,0.04770193,3351.7,3351.3,2.98388]
[1735606317042,0.7742,3351.8,3351.3,2.98388]
[1735606317409,0.04770193,3351.7,3351.3,2.98388]
[1735606317616,0.7742,3351.8,3351.3,2.98388]
[1735606317817,0.04770193,3351.7,3351.4,2.9838]
[1735606318016,0.7742,3351.8,3351.4,2.9838]
[1735606318219,0.04770193,3351.7,3351.4,2.9838]
[1735606318419,0.7742,3351.8,3351.4,2.9838]
[1735606318929,0.04770193,3351.7,3351.4,2.9838]
[1735606319332,0.7742,3351.8,3351.4,2.9838]
[1735606319758,0.04770193,3351.7,3351.4,2.9838]
[1735606320043,0.7949,3352.0,3351.6,2.98364]
[1735606320256,0.04770193,3351.9,3351.6,2.98364]
[1735606320411,0.04770193,3351.9,3351.8,2.98347]
[1735606320753,0.15537826,3352.2,3351.9,2.98338]
[1735606324755,0.15537826,3352.2,3351.6,2.98357]
[1735606325485,0.55,3352.1,3351.3,3.76554]
[1735606325781,0.815,3352.0,3351.3,2.98384]
[1735606325939,0.15547829,3351.9,3351.3,2.98384]
[1735606327079,0.15547829,3351.9,3351.1,0.1707345]
[1735606327300,0.84940468,3351.8,3351.2,2.98398]
[1735606328106,0.04780016,3351.7,3351.2,2.98398]
[1735606328262,0.815,3351.5,3351.1,0.1707345]
[1735606328471,1.365,3351.2,3351.1,0.1707345]
[1735606328678,1.39940468,3351.2,3351.1,0.1707345]
[1735606328978,1.44687511,3351.2,3351.1,0.1707345]
[1735606329183,2.23663574,3351.2,3351.1,0.1707345]
[1735606329357,5.23663574,3351.2,3351.1,0.1707345]
[1735606330182,8.22063574,3351.2,3351.1,0.1707345]
[1735606330395,8.18623106,3351.2,3351.1,0.1707345]
[1735606331169,4.365,3350.8,3349.3,4.23305429]
[1735606331468,4.365,3350.8,3349.9,2.98514]
[1735606331469,0.55,3350.6,3349.9,2.98514]
[1735606331974,0.76783121,3350.5,3349.9,2.98514]
[1735606332175,0.76783121,3350.5,3349.4,2.98554]
[1735606332357,0.72128735,3350.4,3349.7,3.74641]
[1735606332764,0.03440468,3350.3,3349.7,3.74641]
[1735606332998,0.815,3350.2,3349.7,3.74641]
[1735606333195,0.86154386,3350.2,3349.7,3.74641]
[1735606333496,0.72128735,3350.1,3349.7,3.74641]
[1735606334397,0.72128735,3350.0,3349.7,3.74641]
[1735606334575,0.76783121,3350.0,3349.7,3.74641]
[1735606335081,0.72128735,3349.9,3349.7,3.74641]
[1735606335463,0.04654386,3349.8,3349.7,3.74641]
[1735606335694,0.27741821,3349.8,3349.7,3.74641]
[1735606336075,0.27741821,3349.8,3349.7,4.419607]
[1735606336763,1.24169874,3350.7,3350.0,2.98498]
[1735606337305,0.04513303,3350.6,3350.0,2.98498]
[1735606337508,0.76416127,3350.6,3350.0,2.98498]
[1735606338422,0.71902824,3350.5,3350.0,2.98498]
[1735606338996,0.76416127,3350.4,3350.0,2.98498]
[1735606339535,0.27654932,3350.3,3350.0,2.98498]
[1735606339830,0.27654932,3350.2,3350.0,2.98498]
[1735606340411,0.815,3350.8,3350.0,2.98498]
[1735606340716,0.55,3350.6,3349.9,2.98514]
[1735606340925,0.71889472,3350.5,3349.7,0.7611]
[1735606341235,0.71889472,3350.5,3350.1,2.98491]
[1735606341437,0.76402775,3350.4,3350.1,2.98491]
[1735606341839,0.27649797,3350.3,3350.1,2.98491]
[1735606342215,0.27649797,3350.3,3349.8,2.98517]
[1735606342435,0.27649797,3350.3,3349.7,0.7611]
[1735606342745,0.03440468,3350.7,3349.7,0.7611]
[1735606342746,1.110731,3350.2,3349.7,0.7611]
[1735606343103,0.27649797,3350.1,3349.7,0.7611]
[1735606343574,0.83423303,3350.2,3349.7,3.74635]
[1735606343575,0.27649797,3350.0,3349.7,3.74635]
[1735606344068,0.27649797,3349.9,3349.7,3.74635]
[1735606344431,0.27649797,3349.9,3349.7,2.98525]
[1735606344754,0.7891,3350.2,3349.7,2.98525]
[1735606345259,0.7636474,3350.1,3349.7,2.98525]
[1735606345547,0.71851437,3350.1,3349.7,2.98525]
[1735606346755,0.71851437,3350.1,3349.7,0.379105]
[1735606346925,0.71851437,3350.1,3350.0,2.98507]
[1735606347111,0.27635168,3350.1,3350.0,2.98507]
[1735606347758,0.71849626,3350.7,3350.1,2.98494]
[1735606348345,0.76362929,3350.6,3350.1,2.98494]
[1735606348754,0.71849626,3350.5,3350.1,2.98494]
[1735606349759,0.04513303,3350.4,3350.1,2.98494]
[1735606350364,0.04513303,3350.4,3349.4,3.0]
[1735606350365,1.06552133,3350.3,3349.5,3.8058]
[1735606350514,1.06552133,3350.3,3349.8,2.98524]
[1735606350712,0.0440634,3350.2,3349.8,2.98524]
[1735606351128,0.27642133,3350.1,3349.8,2.98524]
[1735606351953,0.71886625,3350.6,3350.0,2.98499]
[1735606352251,0.71886625,3350.6,3349.8,2.98521]
[1735606352426,0.48681707,3350.5,3349.8,2.98521]
[1735606353257,0.71886625,3350.4,3349.8,2.98521]
[1735606353756,0.0440634,3350.3,3349.8,2.98521]
[1735606353920,0.32048473,3350.3,3349.8,2.98521]
[1735606354441,0.71886625,3350.2,3349.8,2.98521]
[1735606355228,0.27642133,3350.1,3349.8,2.98521]
[1735606355430,0.27642133,3350.1,3349.9,2.98513]
[1735606355677,0.27642133,3350.1,3350.0,2.98507]
[1735606355957,0.44244492,3350.1,3350.0,3.81277]
[1735606356331,4.2e-06,3350.1,3350.0,6.81277]
[1735606356543,4.2e-06,3350.1,3350.0,9.59617823]
[1735606356764,4.2e-06,3350.1,3350.0,10.88417235]
[1735606357076,1.24169874,3351.4,3350.7,0.8277]
[1735606357287,1.24169874,3351.4,3351.1,2.98407]
[1735606357609,0.04404935,3351.3,3351.1,2.98407]
[1735606358480,0.04404935,3351.3,3351.2,2.984]
[1735606358654,0.797,3351.8,3351.3,2.98384]
[1735606360880,1.24169874,3352.2,3351.8,2.98346]
[1735606361576,1.24169874,3352.2,3351.4,0.8277]
[1735606361783,0.797,3352.3,3351.9,2.98334]
[1735606362143,0.797,3352.3,3351.4,0.8277]
[1735606362345,0.797,3352.3,3351.8,2.98346]
[1735606362982,0.797,3352.3,3351.4,0.8277]
[1735606363151,0.15539587,3352.4,3352.0,2.98329]
[1735606364297,0.15539587,3352.4,3352.1,2.98318]
[1735606364447,2.03869874,3352.8,3352.3,2.98302]
[1735606364863,1.24169874,3352.8,3351.9,6.59443823]
[1735606365068,1.24169874,3352.8,3352.7,2.98267]
[1735606365988,1.24169874,3353.3,3353.2,2.98222]
[1735606366687,1.24169874,3353.3,3352.7,2.98267]
[1735606367017,1.24169874,3353.3,3352.6,0.8277]
[1735606367018,3.58040823,3353.8,3352.8,2.98254]
[1735606367153,0.65619282,3353.7,3352.8,2.98254]
[1735606367350,0.8116311,3353.7,3352.8,2.98254]
[1735606367651,0.797,3353.5,3352.8,2.98254]
[1735606367853,0.797,3353.5,3352.6,0.8277]
[1735606368154,0.797,3353.5,3353.1,2.98227]
[1735606368574,0.27605047,3353.4,3352.6,0.8277]
[1735606368776,0.27605047,3353.4,3352.8,2.98252]
[1735606368965,0.27605047,3353.3,3352.8,2.98252]
[1735606369166,0.27605047,3353.3,3352.9,2.98245]
[1735606369363,0.27605047,3353.3,3353.0,2.98239]
[1735606369571,0.797,3353.5,3353.0,2.98239]
[1735606370053,0.797,3353.5,3352.8,2.98257]
[1735606370248,0.27590136,3353.4,3352.8,2.98257]
[1735606370481,0.27590136,3353.4,3352.6,3.81045]
[1735606370792,0.27590136,3353.3,3352.6,3.81045]
[1735606371159,0.27590136,3353.3,3352.4,2.98291]
[1735606371366,0.27590136,3353.2,3352.5,2.98284]
[1735606371900,0.27590136,3353.2,3352.7,2.98263]
[1735606372063,0.55,3353.4,3352.7,2.98263]
[1735606372261,0.55,3353.2,3352.3,3.0]
[1735606372602,0.1988751,3353.1,3352.3,5.98302]
[1735606372802,0.24442144,3353.1,3352.3,5.98302]
[1735606373103,0.27562433,3353.0,3352.5,2.98281]
[1735606373491,0.04554634,3352.9,3352.5,2.98281]
[1735606373672,0.8088,3353.3,3352.5,2.98281]
[1735606373874,0.55,3353.2,3352.5,2.98281]
[1735606374171,0.87114521,3353.2,3352.5,2.98281]
[1735606374594,0.27559887,3353.1,3352.5,0.598281]
[1735606374764,0.27559887,3353.1,3352.8,2.9825]
[1735606375102,0.8088,3353.3,3352.8,2.9825]
[1735606375305,0.04554634,3353.2,3352.8,2.9825]
[1735606375463,0.2756407,3353.2,3352.8,2.9825]
[1735606375658,0.04554634,3353.1,3352.8,2.9825]
[1735606375872,0.8088,3353.3,3352.9,2.98247]
[1735606376287,0.04554634,3353.2,3352.9,2.98247]
[1735606376487,0.8088,3353.3,3352.9,2.98247]
[1735606376690,0.04554634,3353.2,3352.3,3.0]
[1735606376886,0.27567956,3353.2,3352.6,2.98267]
[1735606377093,0.04554634,3353.1,3352.7,2.98263]
[1735606377295,0.27567956,3353.2,3352.7,2.98263]
[1735606377460,0.04554634,3353.1,3352.5,2.98277]
[1735606377676,0.04554634,3353.1,3352.3,3.0]
[1735606377677,0.8088,3353.0,3352.3,2.98302]
[1735606377860,0.27567956,3352.9,3352.3,2.98302]
[1735606378063,0.04554634,3352.8,3352.3,2.98302]
[1735606378665,0.8088,3353.0,3352.3,2.98302]
[1735606378879,0.04554634,3352.9,3352.3,2.98302]
[1735606379676,0.27572284,3352.8,3352.3,2.98302]
[1735606380073,1.08452284,3352.7,3352.1,2.98319]
[1735606380366,0.8088,3352.5,3352.0,2.98328]
[1735606380598,0.8088,3352.5,3351.5,3.0]
[1735606380822,0.32148685,3352.4,3351.6,0.95192582]
[1735606381108,0.27572284,3352.4,3352.2,2.98309]
[1735606381404,0.8088,3352.5,3351.9,2.98337]
[1735606381705,0.8088,3352.5,3351.4,0.752]
[1735606381706,0.55,3352.4,3351.4,0.752]
[1735606381864,0.78664401,3352.4,3351.7,2.98354]
[1735606382063,0.78664401,3352.4,3351.5,2.98372]
[1735606382259,0.55,3352.0,3351.5,2.98372]
[1735606382941,0.04576401,3351.9,3351.5,2.98372]
[1735606383107,0.32163876,3351.9,3351.5,2.98372]
[1735606383470,0.48968264,3351.9,3351.3,2.98389]
[1735606383671,0.27587475,3351.8,3351.3,2.98389]
[1735606384098,0.04576401,3351.7,3351.3,2.98389]
[1735606384292,0.27587475,3351.8,3351.3,2.98389]
[1735606384484,0.04576401,3351.7,3351.3,2.98389]
[1735606384682,0.27587475,3351.7,3351.4,2.98379]
[1735606385363,0.27587475,3351.6,3351.4,2.98379]
[1735606386009,0.27587475,3351.9,3351.4,2.98379]
[1735606386389,0.32163876,3351.8,3351.4,2.98379]
[1735606387003,1.65257475,3351.7,3351.0,2.98414]
[1735606387517,0.32109096,3351.6,3351.0,2.98414]
[1735606387882,1.10257475,3351.5,3350.8,2.98434]
[1735606388091,1.10257475,3351.5,3350.6,2.98454]
[1735606388310,0.04521621,3351.4,3350.6,0.65899282]
[1735606388472,0.04521621,3351.4,3351.2,2.98396]
[1735606388678,0.27587475,3351.3,3351.0,2.98416]
[1735606388988,0.8267,3351.2,3350.5,3.0]
[1735606389192,1.10257475,3351.2,3350.7,2.98443]
[1735606389593,0.27587475,3351.1,3350.8,2.98435]
[1735606389936,0.27587475,3351.1,3350.7,2.98445]
[1735606390081,0.27587475,3351.1,3351.0,2.98418]
[1735606390510,0.8267,3351.6,3351.0,2.98418]
[1735606390511,0.27587475,3351.5,3351.0,2.98418]
[1735606390706,0.27587475,3351.5,3351.4,2.98382]
[1735606391182,0.27587475,3351.7,3351.6,2.98364]
[1735606391920,0.27587475,3352.2,3351.9,2.98338]
[1735606392279,1.3644,3352.0,3351.0,3.74080205]
[1735606392507,1.3644,3352.0,3351.4,2.9838]
[1735606392892,0.27587475,3351.9,3351.4,2.9838]
[1735606393519,0.27587475,3351.8,3351.4,2.9838]
[1735606393706,1.3644,3352.0,3351.4,2.9838]
[1735606393907,0.27660477,3351.7,3351.4,2.9838]
[1735606394312,0.27660477,3351.6,3351.4,2.9838]
[1735606394825,0.27660477,3351.5,3351.4,3.2822]
[1735606398722,0.27660477,3351.5,3351.4,0.29838]
[1735606398926,0.27660477,3351.5,3351.4,2.98382]
[1735606399632,0.27660477,3351.5,3351.2,2.98399]
[1735606399809,0.27660477,3351.5,3351.4,2.98382]
[1735606399993,0.27660477,3351.5,3351.0,2.98418]
[1735606399994,0.8144,3352.0,3351.5,2.98373]
[1735606400194,0.8144,3352.0,3351.6,0.298373]
[1735606400403,0.04287693,3351.9,3351.1,2.98402]
[1735606400735,0.7739,3351.7,3351.1,2.98406]
[1735606401310,0.04287693,3351.6,3351.1,2.98406]
[1735606401631,0.31975109,3351.6,3351.1,2.98406]
[1735606401839,0.82687416,3351.5,3351.0,2.98414]
[1735606402134,0.31999715,3351.4,3351.0,2.98414]
[1735606402535,0.27687416,3351.3,3351.0,2.98414]
[1735606402692,0.27687416,3351.3,3350.6,1.34734082]
[1735606402897,0.27687416,3351.3,3351.0,2.98409]
[1735606403311,0.7739,3351.1,3350.8,2.98433]
[1735606403711,0.27687416,3351.0,3350.8,2.98433]
[1735606404660,0.27687416,3351.0,3350.9,2.98427]
[1735606405257,0.27687416,3351.3,3350.9,0.769]
[1735606405471,0.27687416,3351.3,3351.1,2.98402]
[1735606405734,0.04312299,3351.2,3351.1,2.98409]
[1735606405891,0.27687416,3351.2,3351.1,2.98409]
[1735606409309,0.27687416,3351.2,3351.1,3.657834]
[1735606410409,0.27687416,3351.2,3351.1,2.98409]
[1735606414630,1.03067416,3351.2,3351.1,2.98409]
[1735606415452,1.03067416,3351.2,3350.7,0.71307491]
[1735606415652,1.03067416,3351.2,3350.8,2.98429]
[1735606415852,0.27687416,3351.1,3350.8,2.98429]
[1735606416041,0.31978628,3351.1,3350.8,2.98429]
[1735606416216,0.31978628,3351.1,3350.3,2.98477]
[1735606416416,0.27687416,3351.0,3350.6,2.9845]
[1735606416611,0.7538,3350.8,3350.0,2.98499]
[1735606416825,0.27687416,3350.7,3350.2,2.98481]
[1735606417024,0.3195121,3350.7,3350.2,2.98481]
[1735606417324,0.7538,3350.5,3349.9,6.5]
[1735606417520,0.7538,3350.3,3349.7,2.98532]
[1735606417734,0.7538,3350.3,3349.3,7.01650252]
[1735606417735,0.7538,3350.1,3349.3,1.24740429]
[1735606418262,0.7538,3350.1,3349.8,2.9852]
[1735606418464,0.27687416,3350.0,3349.8,2.9852]
[1735606418650,0.27687416,3350.0,3349.6,2.9854]
[1735606418963,0.7538,3350.1,3349.6,2.9854]
[1735606418964,0.31920973,3349.9,3349.6,2.9854]
[1735606419272,0.31920973,3349.9,3348.0,3.37231084]
[1735606419273,0.55,3349.6,3348.8,2.98613]
[1735606419453,0.7538,3349.3,3348.6,4.23369429]
[1735606419765,0.55,3349.2,3348.6,4.23369429]
[1735606419950,0.59043647,3349.2,3348.6,4.23369429]
[1735606420260,0.55,3349.0,3348.6,1.24740429]
[1735606420672,0.27687416,3348.9,3348.6,1.24740429]
[1735606420826,0.27687416,3348.9,3348.1,3.0]
[1735606420827,0.27687416,3348.8,3348.1,3.0]
[1735606421025,0.27687416,3348.8,3348.2,3.94730082]
[1735606421229,0.27687416,3348.8,3348.4,2.98644]
[1735606421570,0.27687416,3348.7,3348.6,2.98632]
[1735606421863,0.7538,3349.3,3348.6,2.98632]
[1735606422054,0.55,3349.2,3348.6,2.98632]
[1735606422250,0.59002827,3349.2,3348.6,2.98632]
[1735606422565,0.3105566,3349.1,3348.2,0.96071082]
[1735606422765,0.3105566,3349.1,3347.9,3.81058]
[1735606422766,0.7538,3348.9,3347.9,3.81058]
[1735606422927,0.55,3348.8,3348.2,2.98659]
[1735606423131,0.55,3348.6,3348.2,2.98659]
[1735606423695,0.03959175,3348.5,3348.2,2.98659]
[1735606424036,0.31574367,3348.5,3348.2,2.98659]
[1735606424446,0.27615192,3348.4,3348.2,2.98659]
[1735606424661,0.27615192,3348.4,3347.8,3.0]
[1735606424840,0.7538,3348.9,3348.4,2.98648]
[1735606425266,0.55,3348.7,3348.4,2.98648]
[1735606425453,0.55,3348.7,3347.9,0.99815145]
[1735606425659,0.7538,3348.5,3348.2,2.98666]
[1735606426181,0.55,3348.3,3348.0,2.98685]
[1735606426644,0.03942978,3348.2,3348.0,2.98685]
[1735606427046,0.27544136,3348.4,3348.1,2.98676]
[1735606427288,0.7538,3348.5,3348.1,2.98676]
[1735606427456,0.03942978,3348.3,3347.9,2.98693]
[1735606427642,0.55,3348.2,3347.9,2.98693]
[1735606427847,0.58942978,3348.2,3347.9,2.98693]
[1735606428049,0.03942978,3348.2,3347.7,0.1707345]
[1735606428384,0.03942978,3348.2,3348.1,2.98676]
[1735606428885,0.7538,3348.3,3348.2,2.98667]
[1735606429286,0.03942978,3348.3,3348.2,2.98667]
[1735606429488,0.831,3347.8,3345.8,2.12110644]
[1735606429789,2.78340823,3347.0,3345.9,1.24740429]
[1735606430151,0.831,3346.8,3346.1,2.98852]
[1735606430512,3.36781291,3346.7,3345.9,1.24740429]
[1735606430807,3.64597183,3346.7,3346.0,2.98863]
[1735606431016,0.55,3346.5,3346.0,2.98863]
[1735606431169,0.55,3346.5,3345.5,6.10754074]
[1735606431170,0.3125636,3346.7,3345.1,2.78340823]
[1735606431375,0.0372606,3346.4,3345.4,5.78340823]
[1735606431718,0.15554889,3346.6,3346.5,2.98817]
[1735606432386,0.55,3346.5,3345.5,2.01073682]
[1735606432587,0.55,3346.5,3345.5,0.7577]
[1735606432789,0.55,3346.5,3345.9,2.98867]
[1735606432974,0.0372606,3346.4,3345.6,2.989]
[1735606433181,0.0372606,3346.4,3346.0,2.98856]
[1735606433476,0.55,3346.5,3346.0,2.98856]
[1735606433680,0.0372606,3346.3,3346.0,2.98856]
[1735606433891,0.55,3346.5,3346.1,2.98849]
[1735606434118,0.0372606,3346.2,3346.1,2.98849]
[1735606434279,0.55,3346.5,3345.7,2.98891]
[1735606434828,0.0372606,3346.4,3345.7,2.98891]
[1735606435500,0.0372606,3346.4,3346.2,2.98845]
[1735606435923,0.0372606,3346.4,3346.3,2.98837]
[1735606436287,0.15554889,3346.6,3346.3,2.98837]
[1735606436918,0.0359568,3346.5,3346.3,2.98837]
[1735606438217,0.0359568,3346.5,3346.4,2.98828]
[1735606441038,0.0359568,3346.5,3346.2,2.98844]
[1735606441342,0.55,3346.4,3346.1,2.98854]
[1735606441485,0.55,3346.4,3345.7,2.98886]
[1735606441486,0.0359568,3346.5,3345.6,2.989]
[1735606441681,0.15554889,3346.6,3345.7,0.37467]
[1735606441893,0.15554889,3346.6,3345.9,2.98873]
[1735606442098,0.55,3346.3,3345.1,0.7577]
[1735606442322,0.55,3346.1,3345.1,0.7577]
[1735606442551,0.831,3346.4,3345.1,0.7577]
[1735606442846,0.831,3346.4,3346.1,2.98854]
[1735606443040,0.55,3346.3,3345.8,2.98874]
[1735606444167,0.831,3346.0,3344.9,2.98955]
[1735606444410,0.58440468,3345.9,3345.1,2.98936]
[1735606444588,0.55,3345.7,3345.2,2.98931]
[1735606444739,1.04869812,3345.7,3345.2,2.98931]
[1735606445163,0.27415268,3345.6,3345.3,2.98926]
[1735606446178,0.7653,3345.4,3344.4,0.7577]
[1735606446332,0.7653,3345.4,3344.4,0.7077]
[1735606446333,0.55,3345.3,3344.4,0.7077]
[1735606446518,0.70894527,3345.3,3344.4,0.7077]
[1735606446719,0.70894527,3345.3,3345.0,2.98946]
[1735606446989,0.27415268,3345.2,3345.1,2.98944]
[1735606447470,0.27415268,3345.2,3344.3,0.1707345]
[1735606447642,0.7653,3345.1,3344.3,3.1608845]
[1735606447838,0.03551247,3345.1,3345.0,2.98953]
[1735606448264,0.27415268,3345.1,3345.0,2.98953]
[1735606448762,0.27415268,3345.4,3345.1,2.98943]
[1735606449076,0.03551247,3345.3,3344.9,2.98959]
[1735606449278,0.55,3345.2,3344.9,2.98959]
[1735606449667,0.27415268,3345.3,3344.9,2.98959]
[1735606449862,0.30966515,3345.1,3344.9,2.98959]
[1735606450039,0.27415268,3345.1,3344.9,2.98959]
[1735606450236,0.03551247,3345.0,3344.7,2.98976]
[1735606450659,0.27415268,3345.1,3344.7,2.98976]
[1735606450896,0.27415268,3344.9,3344.8,2.98966]
[1735606451373,0.27415268,3344.9,3344.4,2.99007]
[1735606451374,0.27415268,3345.4,3345.0,2.98951]
[1735606451571,0.27415268,3345.4,3344.4,2.99007]
[1735606451572,0.03416537,3345.3,3345.2,2.98935]
[1735606451788,0.7653,3345.8,3345.3,2.98926]
[1735606451985,0.15547657,3345.6,3344.8,0.81]
[1735606452190,0.15547657,3345.6,3345.5,2.98908]
[1735606452590,0.43079463,3345.6,3345.5,2.98908]
[1735606453203,0.43079463,3345.6,3345.2,2.98931]
[1735606453401,0.27531806,3345.5,3345.2,2.98931]
[1735606453892,0.27531806,3345.4,3345.2,2.98931]
[1735606454292,0.7653,3345.3,3345.0,2.9895]
[1735606454555,0.7653,3345.3,3344.6,2.98989]
[1735606454556,1.04061806,3345.3,3344.8,2.98967]
[1735606454831,1.04061806,3345.3,3344.7,2.98977]
[1735606454990,1.44200881,3345.3,3344.7,2.98977]
[1735606455199,0.27531806,3345.2,3344.7,2.98977]
[1735606455708,0.27531806,3345.1,3344.7,2.98977]
[1735606456103,0.27531806,3345.0,3344.7,2.98977]
[1735606456522,0.27531806,3344.9,3344.7,2.98977]
[1735606457194,0.27531806,3344.8,3344.7,2.98977]
[1735606457397,0.27531806,3344.8,3344.5,2.98997]
[1735606457703,1.04061806,3344.7,3344.5,2.98997]
[1735606457923,1.07519971,3344.7,3344.5,2.98997]
[1735606458189,0.27531806,3344.6,3344.4,2.99006]
[1735606458641,0.03355857,3344.5,3344.4,2.99006]
[1735606458807,0.30887663,3344.5,3344.4,2.99006]
[1735606460029,0.30887663,3344.5,3344.3,0.1707345]
[1735606460542,0.27531806,3344.4,3344.3,0.1707345]
[1735606460910,0.30855195,3344.4,3344.3,3.1608945]
[1735606461834,0.30855195,3344.4,3344.3,0.1707345]
[1735606463627,1.66595195,3344.4,3344.3,0.1707345]
[1735606463816,1.83254715,3344.4,3344.3,0.1707345]
[1735606466443,2.26846757,3344.4,3344.3,0.1707345]
[1735606466944,2.26846757,3344.4,3344.3,3.1608945]
[1735606466945,0.30855195,3344.4,3344.3,3.1608945]
[1735606467239,0.27531806,3344.4,3344.3,3.1608945]
[1735606468043,0.27531806,3344.4,3344.3,0.1707345]
[1735606468261,0.27531806,3344.4,3344.3,3.1608945]
[1735606468433,0.30846018,3344.4,3344.3,3.1608945]
[1735606469674,0.27531806,3344.4,3344.3,3.1608945]
[1735606470291,0.30846018,3344.4,3344.3,3.1608945]
[1735606470834,0.27531806,3344.4,3344.3,3.1608945]
[1735606471469,0.27232806,3344.4,3344.3,4.57512095]
[1735606473359,8.06e-06,3344.4,3344.3,4.57512095]
[1735606478348,8.06e-06,3344.4,3344.3,7.57512095]
[1735606478565,0.15502001,3345.3,3345.2,2.98935]
[1735606480567,0.18855028,3345.3,3345.2,2.98935]
[1735606481653,0.8259,3345.2,3345.0,2.9895]
[1735606481968,0.8259,3345.2,3344.8,2.98969]
[1735606482175,0.03349499,3345.1,3344.8,2.98969]
[1735606484092,0.55,3345.0,3344.6,2.98985]
[1735606484494,0.55,3345.1,3344.6,2.98985]
[1735606484700,0.03349499,3344.9,3344.6,2.98985]
[1735606484995,0.703092,3345.1,3344.6,2.98985]
[1735606485183,0.8259,3344.7,3344.4,2.99005]
[1735606485493,0.31057147,3344.6,3344.4,2.99005]
[1735606485682,0.31057147,3344.6,3344.3,0.1707345]
[1735606485879,0.27707648,3344.5,3344.3,0.1707345]
[1735606486083,1.3759,3344.4,3344.3,0.1707345]
[1735606486394,1.57469264,3344.4,3344.3,0.1707345]
[1735606486584,1.85176912,3344.4,3344.3,0.1707345]
[1735606487769,1.68647147,3344.4,3344.3,0.1707345]
[1735606487970,0.31057147,3344.4,3344.3,3.1608945]
[1735606489199,0.03349499,3344.4,3344.3,3.1608945]
[1735606489400,1.24169874,3344.8,3344.7,2.9898]
[1735606489558,0.8259,3345.2,3344.7,2.9898]
[1735606489760,0.55,3345.1,3344.7,2.9898]
[1735606489955,0.8259,3345.2,3344.9,2.98962]
[1735606490156,0.30831879,3345.0,3344.9,2.98962]